[Event "Titled Tuesday Blitz January 17 Late 2023"]
[White "Kozin, Yuri"]
[Black "Jobava, Baadur"]
[WhiteFideId "4129920"]
[BlackFideId "13601520"]
[WhiteElo "2251"]
[BlackElo "2578"]
[Result "0-1"]
[Round "01"]
[TimeControl "180+2"]
[Date "2023.01.17"]
[WhiteClock "0:00:39"]
[BlackClock "0:00:57"]

1. e4 {[%clk 0:03:00]}  c6 {[%clk 0:02:58]} 2. d4 {[%clk 0:03:01]}  d5 {[%clk 0:02:59]} 3. exd5 {[%clk 0:03:01]}  cxd5 {[%clk 0:02:59]} 4. c4 {[%clk 0:03:02]}  e6 {[%clk 0:02:59]} 5. Nc3 {[%clk 0:03:03]}  Be7 {[%clk 0:02:59]} 6. Nf3 {[%clk 0:03:02]}  Nc6 {[%clk 0:02:59]} 7. cxd5 {[%clk 0:03:01]}  exd5 {[%clk 0:03:00]} 8. Ne5 {[%clk 0:02:59]}  Nf6 {[%clk 0:02:58]} 9. Bb5 {[%clk 0:02:56]}  O-O {[%clk 0:02:57]} 10. Bxc6 {[%clk 0:02:40]}  bxc6 {[%clk 0:02:58]} 11. Nxc6 {[%clk 0:02:41]}  Qe8 {[%clk 0:02:56]} 12. Nxe7+ {[%clk 0:02:40]}  Qxe7+ {[%clk 0:02:57]} 13. Be3 {[%clk 0:02:40]}  Ba6 {[%clk 0:02:55]} 14. Ne2 {[%clk 0:02:31]}  Ng4 {[%clk 0:02:43]} 15. O-O {[%clk 0:02:25]}  Nxe3 {[%clk 0:02:37]} 16. fxe3 {[%clk 0:02:25]}  Qxe3+ {[%clk 0:02:38]} 17. Rf2 {[%clk 0:02:26]}  Rab8 {[%clk 0:02:28]} 18. b3 {[%clk 0:02:14]}  Rfe8 {[%clk 0:02:25]} 19. Ng3 {[%clk 0:02:10]}  g6 {[%clk 0:02:21]} 20. Qd2 {[%clk 0:02:07]}  Rbc8 {[%clk 0:02:14]} 21. Rd1 {[%clk 0:01:59]}  Kg7 {[%clk 0:01:55]} 22. Nf1 {[%clk 0:01:59]}  Qxd2 {[%clk 0:01:52]} 23. Nxd2 {[%clk 0:01:55]}  Rc2 {[%clk 0:01:49]} 24. a4 {[%clk 0:01:45]}  Re2 {[%clk 0:01:47]} 25. h3 {[%clk 0:01:34]}  Rb2 {[%clk 0:01:41]} 26. b4 {[%clk 0:01:31]}  Rxb4 {[%clk 0:01:37]} 27. Nf3 {[%clk 0:01:21]}  Rxa4 {[%clk 0:01:34]} 28. Rc1 {[%clk 0:01:20]}  Rxf2 {[%clk 0:01:30]} 29. Kxf2 {[%clk 0:01:20]}  Bc4 {[%clk 0:01:28]} 30. Rb1 {[%clk 0:01:16]}  Ra2+ {[%clk 0:01:23]} 31. Kg3 {[%clk 0:01:16]}  Bd3 {[%clk 0:01:20]} 32. Rb7 {[%clk 0:01:14]}  Be4 {[%clk 0:01:20]} 33. Rd7 {[%clk 0:01:03]}  a5 {[%clk 0:01:17]} 34. h4 {[%clk 0:00:58]}  a4 {[%clk 0:01:16]} 35. h5 {[%clk 0:00:55]}  gxh5 {[%clk 0:01:15]} 36. Ne5 {[%clk 0:00:51]}  Rxg2+ {[%clk 0:01:15]} 37. Kh4 {[%clk 0:00:50]}  Rh2+ {[%clk 0:01:10]} 38. Kg3 {[%clk 0:00:50]}  Rg2+ {[%clk 0:01:10]} 39. Kh3 {[%clk 0:00:48]}  Bf5+ {[%clk 0:00:55]} 40. Kxg2 {[%clk 0:00:46]}  Bxd7 {[%clk 0:00:56]} 41. Nxd7 {[%clk 0:00:43]}  a3 {[%clk 0:00:57]} 42. Nc5 {[%clk 0:00:44]}  a2 {[%clk 0:00:57]} 43. Nb3 {[%clk 0:00:44]}  f5 {[%clk 0:00:58]} 44. Kf3 {[%clk 0:00:41]}  h4 {[%clk 0:00:57]} 45. Kg2 {[%clk 0:00:39]}  f4 {[%clk 0:00:57]} 0-1


[Site "https://www.chess.com"]

[Event "Titled Tuesday Blitz January 17 Late 2023"]
[White "Rodriguez Fontecha, Marcos"]
[Black "Sanal, Vahap"]
[WhiteFideId "2256576"]
[BlackFideId "6300545"]
[WhiteElo "2309"]
[BlackElo "2600"]
[Result "0-1"]
[Round "01"]
[TimeControl "180+2"]
[Date "2023.01.17"]
[WhiteClock "0:00:25"]
[BlackClock "0:00:57"]

1. Nf3 {[%clk 0:02:56]}  d6 {[%clk 0:02:37]} 2. d4 {[%clk 0:02:55]}  c5 {[%clk 0:02:29]} 3. c3 {[%clk 0:02:50]}  cxd4 {[%clk 0:02:28]} 4. cxd4 {[%clk 0:02:51]}  Nf6 {[%clk 0:02:29]} 5. Nc3 {[%clk 0:02:51]}  g6 {[%clk 0:02:29]} 6. Bf4 {[%clk 0:02:49]}  Bg7 {[%clk 0:02:29]} 7. g3 {[%clk 0:02:46]}  O-O {[%clk 0:02:30]} 8. Bg2 {[%clk 0:02:47]}  Qb6 {[%clk 0:02:30]} 9. Qb3 {[%clk 0:02:46]}  Qa5 {[%clk 0:02:27]} 10. O-O {[%clk 0:02:45]}  Qh5 {[%clk 0:02:27]} 11. Rfe1 {[%clk 0:02:44]}  Nc6 {[%clk 0:02:27]} 12. Rac1 {[%clk 0:02:39]}  Bh3 {[%clk 0:02:23]} 13. Bh1 {[%clk 0:02:38]}  Ng4 {[%clk 0:02:17]} 14. Red1 {[%clk 0:02:28]}  Rab8 {[%clk 0:01:53]} 15. d5 {[%clk 0:02:08]}  Nce5 {[%clk 0:01:52]} 16. Ne4 {[%clk 0:02:01]}  h6 {[%clk 0:01:48]} 17. Rc7 {[%clk 0:01:59]}  g5 {[%clk 0:01:35]} 18. Bc1 {[%clk 0:01:56]}  f5 {[%clk 0:01:34]} 19. Ned2 {[%clk 0:01:43]}  f4 {[%clk 0:01:33]} 20. Nxe5 {[%clk 0:01:38]}  Nxe5 {[%clk 0:01:31]} 21. Nf3 {[%clk 0:01:36]}  fxg3 {[%clk 0:01:21]} 22. hxg3 {[%clk 0:01:37]}  Bg4 {[%clk 0:01:18]} 23. Nxe5 {[%clk 0:01:08]}  Bxe5 {[%clk 0:01:18]} 24. Rxe7 {[%clk 0:00:58]}  Rxf2 {[%clk 0:00:59]} 25. Kxf2 {[%clk 0:00:47]}  Qh2+ {[%clk 0:00:59]} 26. Ke3 {[%clk 0:00:25]}  Qxe2# {[%clk 0:00:57]} 0-1


[Site "https://www.chess.com"]

[Event "Titled Tuesday Blitz January 17 Late 2023"]
[White "Esipenko, Andrey"]
[Black "Reprintsev, Alexander"]
[WhiteFideId "24175439"]
[BlackFideId "14100541"]
[WhiteElo "2679"]
[BlackElo "2253"]
[Result "1/2-1/2"]
[Round "01"]
[TimeControl "180+2"]
[Date "2023.01.17"]
[WhiteClock "0:00:02"]
[BlackClock "0:00:08"]

1. d4 {[%clk 0:02:59]}  d5 {[%clk 0:02:47]} 2. c4 {[%clk 0:02:58]}  e5 {[%clk 0:02:46]} 3. dxe5 {[%clk 0:02:56]}  d4 {[%clk 0:02:42]} 4. Nf3 {[%clk 0:02:56]}  Nc6 {[%clk 0:02:42]} 5. g3 {[%clk 0:02:53]}  Nge7 {[%clk 0:02:41]} 6. Bg2 {[%clk 0:02:13]}  Ng6 {[%clk 0:02:37]} 7. Bf4 {[%clk 0:02:14]}  Nxf4 {[%clk 0:02:22]} 8. gxf4 {[%clk 0:02:13]}  Bf5 {[%clk 0:02:19]} 9. Nbd2 {[%clk 0:02:09]}  Qd7 {[%clk 0:02:18]} 10. a3 {[%clk 0:02:04]}  f6 {[%clk 0:02:16]} 11. b4 {[%clk 0:02:01]}  a5 {[%clk 0:02:06]} 12. b5 {[%clk 0:02:01]}  Nd8 {[%clk 0:02:05]} 13. Nh4 {[%clk 0:01:44]}  Bh3 {[%clk 0:01:58]} 14. exf6 {[%clk 0:01:43]}  Bxg2 {[%clk 0:01:49]} 15. Nxg2 {[%clk 0:01:43]}  gxf6 {[%clk 0:01:49]} 16. Qc2 {[%clk 0:01:41]}  Ne6 {[%clk 0:01:46]} 17. Qf5 {[%clk 0:01:31]}  O-O-O {[%clk 0:01:40]} 18. Ne4 {[%clk 0:01:26]}  Nc5 {[%clk 0:01:26]} 19. Qxd7+ {[%clk 0:01:22]}  Nxd7 {[%clk 0:01:26]} 20. e3 {[%clk 0:01:16]}  Re8 {[%clk 0:01:19]} 21. Ng3 {[%clk 0:01:13]}  dxe3 {[%clk 0:01:13]} 22. fxe3 {[%clk 0:01:13]}  Nb6 {[%clk 0:01:08]} 23. Ke2 {[%clk 0:01:06]}  Nxc4 {[%clk 0:01:06]} 24. a4 {[%clk 0:01:05]}  Bc5 {[%clk 0:01:03]} 25. Rac1 {[%clk 0:00:54]}  Nxe3 {[%clk 0:00:59]} 26. Rxc5 {[%clk 0:00:55]}  Nxg2+ {[%clk 0:00:59]} 27. Kf3 {[%clk 0:00:56]}  Nh4+ {[%clk 0:00:58]} 28. Kg4 {[%clk 0:00:56]}  Ng6 {[%clk 0:00:58]} 29. Rhc1 {[%clk 0:00:57]}  Re7 {[%clk 0:00:56]} 30. b6 {[%clk 0:00:44]}  c6 {[%clk 0:00:55]} 31. Rxa5 {[%clk 0:00:44]}  Kb8 {[%clk 0:00:53]} 32. Rf5 {[%clk 0:00:41]}  Rf8 {[%clk 0:00:49]} 33. a5 {[%clk 0:00:39]}  Re3 {[%clk 0:00:45]} 34. Rh5 {[%clk 0:00:20]}  Ra3 {[%clk 0:00:35]} 35. Rcc5 {[%clk 0:00:13]}  Rf7 {[%clk 0:00:31]} 36. Kf5 {[%clk 0:00:12]}  Nf8 {[%clk 0:00:31]} 37. Ne4 {[%clk 0:00:11]}  Rd3 {[%clk 0:00:23]} 38. Rh6 {[%clk 0:00:05]}  Rd8 {[%clk 0:00:19]} 39. Rxf6 {[%clk 0:00:05]}  Re7 {[%clk 0:00:15]} 40. a6 {[%clk 0:00:05]}  Nd7 {[%clk 0:00:15]} 41. a7+ {[%clk 0:00:04]}  Ka8 {[%clk 0:00:15]} 42. Re5 {[%clk 0:00:04]}  Rxe5+ {[%clk 0:00:13]} 43. fxe5 {[%clk 0:00:05]}  Nxf6 {[%clk 0:00:14]} 44. exf6 {[%clk 0:00:04]}  h5 {[%clk 0:00:12]} 45. f7 {[%clk 0:00:03]}  c5 {[%clk 0:00:12]} 46. Nxc5 {[%clk 0:00:01]}  h4 {[%clk 0:00:12]} 47. Nd7 {[%clk 0:00:02]}  h3 {[%clk 0:00:11]} 48. Ke6 {[%clk 0:00:02]}  Rh8 {[%clk 0:00:09]} 49. Nf6 {[%clk 0:00:02]}  Rf8 {[%clk 0:00:08]} 50. Ng4 {[%clk 0:00:01]}  Rxf7 {[%clk 0:00:08]} 51. Kxf7 {[%clk 0:00:02]} 1/2-1/2


[Site "https://www.chess.com"]

[Event "Titled Tuesday Blitz January 17 Late 2023"]
[White "Gavilan Diaz, Mario"]
[Black "Zierk, Steven"]
[WhiteFideId "2260905"]
[BlackFideId "2034255"]
[WhiteElo "2271"]
[BlackElo "2488"]
[Result "0-1"]
[Round "01"]
[TimeControl "180+2"]
[Date "2023.01.17"]
[WhiteClock "0:00:20"]
[BlackClock "0:00:53"]

1. d4 {[%clk 0:02:54]}  e6 {[%clk 0:02:59]} 2. c4 {[%clk 0:02:52]}  f5 {[%clk 0:03:00]} 3. Nc3 {[%clk 0:02:51]}  Nf6 {[%clk 0:02:59]} 4. Bg5 {[%clk 0:02:51]}  Bb4 {[%clk 0:02:59]} 5. Qb3 {[%clk 0:02:49]}  c5 {[%clk 0:02:58]} 6. dxc5 {[%clk 0:02:49]}  Nc6 {[%clk 0:02:58]} 7. Nf3 {[%clk 0:02:47]}  h6 {[%clk 0:02:52]} 8. Bxf6 {[%clk 0:02:45]}  Qxf6 {[%clk 0:02:53]} 9. Rc1 {[%clk 0:02:41]}  O-O {[%clk 0:02:47]} 10. e3 {[%clk 0:02:41]}  e5 {[%clk 0:02:45]} 11. Be2 {[%clk 0:02:38]}  e4 {[%clk 0:02:40]} 12. Nd4 {[%clk 0:02:19]}  Bxc5 {[%clk 0:02:22]} 13. Nd5 {[%clk 0:02:13]}  Qe5 {[%clk 0:02:16]} 14. Nxc6 {[%clk 0:02:04]}  bxc6 {[%clk 0:02:12]} 15. Nf4 {[%clk 0:02:04]}  Rb8 {[%clk 0:02:10]} 16. Qd1 {[%clk 0:01:45]}  Qxb2 {[%clk 0:02:00]} 17. O-O {[%clk 0:01:45]}  g5 {[%clk 0:01:51]} 18. Ng6 {[%clk 0:01:26]}  Rf6 {[%clk 0:01:50]} 19. Rc2 {[%clk 0:01:26]}  Qb6 {[%clk 0:01:39]} 20. Ne5 {[%clk 0:01:26]}  d6 {[%clk 0:01:38]} 21. h4 {[%clk 0:00:54]}  dxe5 {[%clk 0:01:33]} 22. hxg5 {[%clk 0:00:54]}  hxg5 {[%clk 0:01:33]} 23. Rb2 {[%clk 0:00:53]}  Qxb2 {[%clk 0:01:29]} 24. Qd8+ {[%clk 0:00:54]}  Kg7 {[%clk 0:01:27]} 25. Bh5 {[%clk 0:00:45]}  Be6 {[%clk 0:01:18]} 26. Qc7+ {[%clk 0:00:44]}  Kh6 {[%clk 0:01:18]} 27. Rd1 {[%clk 0:00:40]}  Kxh5 {[%clk 0:01:05]} 28. g4+ {[%clk 0:00:25]}  fxg4 {[%clk 0:00:58]} 29. Qh7+ {[%clk 0:00:25]}  Rh6 {[%clk 0:00:59]} 30. Qxe4 {[%clk 0:00:26]}  Rf8 {[%clk 0:00:55]} 31. Qh1+ {[%clk 0:00:21]}  Kg6 {[%clk 0:00:55]} 32. Qe4+ {[%clk 0:00:22]}  Kg7 {[%clk 0:00:54]} 33. Rf1 {[%clk 0:00:20]}  g3 {[%clk 0:00:53]} 0-1


[Site "https://www.chess.com"]

[Event "Titled Tuesday Blitz January 17 Late 2023"]
[White "Kamsky, Gata"]
[Black "Carbone, Diego"]
[WhiteFideId "2000024"]
[BlackFideId "3002179"]
[WhiteElo "2665"]
[BlackElo "2336"]
[Result "1-0"]
[Round "01"]
[TimeControl "180+2"]
[Date "2023.01.17"]
[WhiteClock "0:00:18"]
[BlackClock "0:00:02"]

1. d4 {[%clk 0:02:59]}  Nf6 {[%clk 0:02:58]} 2. Bf4 {[%clk 0:02:58]}  g6 {[%clk 0:02:55]} 3. c3 {[%clk 0:02:57]}  Bg7 {[%clk 0:02:55]} 4. Nf3 {[%clk 0:02:57]}  d6 {[%clk 0:02:55]} 5. h3 {[%clk 0:02:56]}  Nbd7 {[%clk 0:02:51]} 6. Nbd2 {[%clk 0:02:55]}  c5 {[%clk 0:02:50]} 7. e4 {[%clk 0:02:44]}  O-O {[%clk 0:02:42]} 8. d5 {[%clk 0:02:39]}  a6 {[%clk 0:02:23]} 9. a4 {[%clk 0:02:37]}  b6 {[%clk 0:02:18]} 10. Bd3 {[%clk 0:02:25]}  Rb8 {[%clk 0:02:04]} 11. Qe2 {[%clk 0:02:22]}  b5 {[%clk 0:01:41]} 12. axb5 {[%clk 0:02:21]}  axb5 {[%clk 0:01:42]} 13. Bxb5 {[%clk 0:02:21]}  Qb6 {[%clk 0:01:42]} 14. c4 {[%clk 0:02:21]}  Nh5 {[%clk 0:01:39]} 15. Bg5 {[%clk 0:02:19]}  Bxb2 {[%clk 0:01:32]} 16. Rb1 {[%clk 0:02:18]}  Bf6 {[%clk 0:01:31]} 17. Bxf6 {[%clk 0:01:58]}  Nhxf6 {[%clk 0:01:32]} 18. O-O {[%clk 0:01:56]}  Qc7 {[%clk 0:01:27]} 19. Rfe1 {[%clk 0:01:55]}  Ra8 {[%clk 0:00:56]} 20. e5 {[%clk 0:01:46]}  dxe5 {[%clk 0:00:49]} 21. Nxe5 {[%clk 0:01:45]}  Nxe5 {[%clk 0:00:31]} 22. Qxe5 {[%clk 0:01:44]}  Qxe5 {[%clk 0:00:31]} 23. Rxe5 {[%clk 0:01:42]}  Bf5 {[%clk 0:00:27]} 24. Rbe1 {[%clk 0:01:41]}  Ra2 {[%clk 0:00:24]} 25. Nb3 {[%clk 0:01:32]}  h5 {[%clk 0:00:14]} 26. Rxe7 {[%clk 0:01:29]}  Rb2 {[%clk 0:00:12]} 27. R7e3 {[%clk 0:01:09]}  Ra8 {[%clk 0:00:11]} 28. R1e2 {[%clk 0:00:50]}  Rb1+ {[%clk 0:00:07]} 29. Kh2 {[%clk 0:00:50]}  Kg7 {[%clk 0:00:06]} 30. Bc6 {[%clk 0:00:39]}  Ra3 {[%clk 0:00:05]} 31. Nxc5 {[%clk 0:00:38]}  Rxe3 {[%clk 0:00:04]} 32. Rxe3 {[%clk 0:00:38]}  Rc1 {[%clk 0:00:05]} 33. Nb7 {[%clk 0:00:27]}  Rxc4 {[%clk 0:00:04]} 34. Nd6 {[%clk 0:00:28]}  Rd4 {[%clk 0:00:01]} 35. Nxf5+ {[%clk 0:00:26]}  gxf5 {[%clk 0:00:02]} 36. Re5 {[%clk 0:00:22]}  Kg6 {[%clk 0:00:03]} 37. f3 {[%clk 0:00:19]}  h4 {[%clk 0:00:03]} 38. Kg1 {[%clk 0:00:19]}  Rd2 {[%clk 0:00:03]} 39. Kf1 {[%clk 0:00:19]}  Kg5 {[%clk 0:00:03]} 40. Ke1 {[%clk 0:00:19]}  Rd4 {[%clk 0:00:03]} 41. Ke2 {[%clk 0:00:18]}  Kf4 {[%clk 0:00:03]} 42. Re7 {[%clk 0:00:19]}  Nxd5 {[%clk 0:00:03]} 43. Bxd5 {[%clk 0:00:19]}  Rxd5 {[%clk 0:00:03]} 44. Rxf7 {[%clk 0:00:19]}  Re5+ {[%clk 0:00:04]} 45. Kf2 {[%clk 0:00:19]}  Ra5 {[%clk 0:00:04]} 46. Rh7 {[%clk 0:00:19]}  Ra2+ {[%clk 0:00:05]} 47. Kg1 {[%clk 0:00:19]}  Kg3 {[%clk 0:00:03]} 48. Rg7+ {[%clk 0:00:19]}  Kf4 {[%clk 0:00:04]} 49. Kh2 {[%clk 0:00:20]}  Ra1 {[%clk 0:00:04]} 50. Rh7 {[%clk 0:00:19]}  Kg5 {[%clk 0:00:04]} 51. f4+ {[%clk 0:00:19]}  Kxf4 {[%clk 0:00:04]} 52. Rxh4+ {[%clk 0:00:20]}  Kg5 {[%clk 0:00:05]} 53. Rd4 {[%clk 0:00:20]}  Ra2 {[%clk 0:00:05]} 54. h4+ {[%clk 0:00:19]}  Kh5 {[%clk 0:00:04]} 55. Kh3 {[%clk 0:00:20]}  Ra3+ {[%clk 0:00:04]} 56. g3 {[%clk 0:00:20]}  Rb3 {[%clk 0:00:04]} 57. Rd5 {[%clk 0:00:19]}  Kg6 {[%clk 0:00:04]} 58. Rd4 {[%clk 0:00:18]}  Kh5 {[%clk 0:00:04]} 59. Rf4 {[%clk 0:00:19]}  Kg6 {[%clk 0:00:04]} 60. Kg2 {[%clk 0:00:19]}  Rb2+ {[%clk 0:00:04]} 61. Rf2 {[%clk 0:00:20]}  Rb3 {[%clk 0:00:04]} 62. Re2 {[%clk 0:00:19]}  Rc3 {[%clk 0:00:04]} 63. Kf2 {[%clk 0:00:19]}  Ra3 {[%clk 0:00:03]} 64. Re3 {[%clk 0:00:19]}  Ra2+ {[%clk 0:00:03]} 65. Kf3 {[%clk 0:00:20]}  Ra1 {[%clk 0:00:04]} 66. Kf4 {[%clk 0:00:19]}  Rf1+ {[%clk 0:00:04]} 67. Ke5 {[%clk 0:00:19]}  Rf2 {[%clk 0:00:04]} 68. Rd3 {[%clk 0:00:19]}  Kh5 {[%clk 0:00:03]} 69. Rd8 {[%clk 0:00:19]}  Kg4 {[%clk 0:00:03]} 70. Rg8+ {[%clk 0:00:19]}  Kh3 {[%clk 0:00:02]} 71. h5 {[%clk 0:00:18]} 1-0


[Site "https://www.chess.com"]

[Event "Titled Tuesday Blitz January 17 Late 2023"]
[White "Tang, Andrew"]
[Black "Graif, William"]
[WhiteFideId "2059630"]
[BlackFideId "2609835"]
[WhiteElo "2523"]
[BlackElo "2304"]
[Result "1-0"]
[Round "01"]
[TimeControl "180+2"]
[Date "2023.01.17"]
[WhiteClock "0:00:14"]
[BlackClock "0:00:24"]

1. d4 {[%clk 0:02:57]}  Nf6 {[%clk 0:02:57]} 2. c4 {[%clk 0:02:54]}  e5 {[%clk 0:02:52]} 3. dxe5 {[%clk 0:02:34]}  Ng4 {[%clk 0:02:49]} 4. e3 {[%clk 0:02:34]}  d6 {[%clk 0:02:47]} 5. exd6 {[%clk 0:02:22]}  Bxd6 {[%clk 0:02:47]} 6. Be2 {[%clk 0:02:03]}  h5 {[%clk 0:02:19]} 7. Nf3 {[%clk 0:02:01]}  Nc6 {[%clk 0:02:16]} 8. Bd2 {[%clk 0:01:38]}  Be6 {[%clk 0:02:08]} 9. Bc3 {[%clk 0:01:35]}  Qe7 {[%clk 0:02:08]} 10. h3 {[%clk 0:01:28]}  Nge5 {[%clk 0:01:52]} 11. Nxe5 {[%clk 0:01:15]}  Nxe5 {[%clk 0:01:52]} 12. Nd2 {[%clk 0:01:15]}  O-O-O {[%clk 0:01:49]} 13. Qc2 {[%clk 0:01:16]}  g6 {[%clk 0:01:26]} 14. O-O-O {[%clk 0:01:07]}  Rhe8 {[%clk 0:01:26]} 15. c5 {[%clk 0:00:51]}  Bxc5 {[%clk 0:01:12]} 16. Bxe5 {[%clk 0:00:50]}  Bf5 {[%clk 0:01:10]} 17. e4 {[%clk 0:00:41]}  Qxe5 {[%clk 0:01:09]} 18. exf5 {[%clk 0:00:38]}  Qxe2 {[%clk 0:01:08]} 19. Qxc5 {[%clk 0:00:36]}  Rd6 {[%clk 0:01:00]} 20. Qxa7 {[%clk 0:00:22]}  Qd3 {[%clk 0:00:49]} 21. Qa8+ {[%clk 0:00:21]}  Kd7 {[%clk 0:00:49]} 22. Qa4+ {[%clk 0:00:20]}  b5 {[%clk 0:00:38]} 23. Qc2 {[%clk 0:00:19]}  Rc6 {[%clk 0:00:26]} 24. Nc4 {[%clk 0:00:18]}  bxc4 {[%clk 0:00:26]} 25. Qa4 {[%clk 0:00:16]}  Re2 {[%clk 0:00:18]} 26. Rxd3+ {[%clk 0:00:13]}  cxd3+ {[%clk 0:00:19]} 27. Kb1 {[%clk 0:00:14]}  d2 {[%clk 0:00:18]} 28. Rd1 {[%clk 0:00:13]}  Re1 {[%clk 0:00:18]} 29. fxg6 {[%clk 0:00:12]}  fxg6 {[%clk 0:00:17]} 30. a3 {[%clk 0:00:10]}  Rxd1+ {[%clk 0:00:17]} 31. Qxd1 {[%clk 0:00:10]}  Rc1+ {[%clk 0:00:17]} 32. Qxc1 {[%clk 0:00:11]}  dxc1=Q+ {[%clk 0:00:18]} 33. Kxc1 {[%clk 0:00:12]}  Kd6 {[%clk 0:00:18]} 34. Kd2 {[%clk 0:00:12]}  Ke5 {[%clk 0:00:19]} 35. Ke3 {[%clk 0:00:12]}  Kd5 {[%clk 0:00:20]} 36. b3 {[%clk 0:00:11]}  Ke6 {[%clk 0:00:20]} 37. g4 {[%clk 0:00:11]}  Ke5 {[%clk 0:00:21]} 38. f4+ {[%clk 0:00:12]}  Kf6 {[%clk 0:00:22]} 39. Ke4 {[%clk 0:00:11]}  Ke6 {[%clk 0:00:22]} 40. f5+ {[%clk 0:00:11]}  gxf5+ {[%clk 0:00:21]} 41. gxf5+ {[%clk 0:00:12]}  Kf6 {[%clk 0:00:22]} 42. h4 {[%clk 0:00:13]}  Kf7 {[%clk 0:00:22]} 43. Ke5 {[%clk 0:00:13]}  Ke7 {[%clk 0:00:23]} 44. f6+ {[%clk 0:00:14]}  Kf7 {[%clk 0:00:24]} 45. a4 {[%clk 0:00:14]}  c6 {[%clk 0:00:24]} 46. a5 {[%clk 0:00:14]} 1-0


[Site "https://www.chess.com"]

[Event "Titled Tuesday Blitz January 17 Late 2023"]
[White "Mareco, Sandro"]
[Black "Bortnyk, Mykola"]
[WhiteFideId "112275"]
[BlackFideId "14120836"]
[WhiteElo "2633"]
[BlackElo "2425"]
[Result "0-1"]
[Round "01"]
[TimeControl "180+2"]
[Date "2023.01.17"]
[WhiteClock "0:00:01"]
[BlackClock "0:00:08"]

1. d4 {[%clk 0:02:59]}  Nf6 {[%clk 0:02:59]} 2. Nc3 {[%clk 0:02:59]}  d5 {[%clk 0:02:58]} 3. Bf4 {[%clk 0:02:59]}  Bf5 {[%clk 0:02:56]} 4. e3 {[%clk 0:02:58]}  e6 {[%clk 0:02:51]} 5. f3 {[%clk 0:02:58]}  Bd6 {[%clk 0:02:41]} 6. Nge2 {[%clk 0:02:46]}  h6 {[%clk 0:02:30]} 7. g4 {[%clk 0:02:40]}  Bh7 {[%clk 0:02:28]} 8. h4 {[%clk 0:02:40]}  Na6 {[%clk 0:02:10]} 9. Bxd6 {[%clk 0:02:37]}  Qxd6 {[%clk 0:02:05]} 10. Nf4 {[%clk 0:02:38]}  O-O-O {[%clk 0:01:45]} 11. Qd2 {[%clk 0:02:28]}  Kb8 {[%clk 0:01:34]} 12. Nd3 {[%clk 0:02:24]}  c5 {[%clk 0:01:30]} 13. Ne5 {[%clk 0:02:22]}  Rhf8 {[%clk 0:01:23]} 14. g5 {[%clk 0:02:20]}  Nd7 {[%clk 0:01:19]} 15. f4 {[%clk 0:02:19]}  f6 {[%clk 0:01:16]} 16. Nf3 {[%clk 0:02:08]}  cxd4 {[%clk 0:01:11]} 17. Nxd4 {[%clk 0:01:58]}  Ndc5 {[%clk 0:01:10]} 18. O-O-O {[%clk 0:01:55]}  Ne4 {[%clk 0:01:00]} 19. Nxe4 {[%clk 0:01:52]}  Bxe4 {[%clk 0:01:00]} 20. Rg1 {[%clk 0:01:49]}  Rc8 {[%clk 0:00:59]} 21. Bd3 {[%clk 0:01:43]}  Nc5 {[%clk 0:00:57]} 22. Kb1 {[%clk 0:01:28]}  Bxd3 {[%clk 0:00:48]} 23. cxd3 {[%clk 0:01:29]}  hxg5 {[%clk 0:00:48]} 24. hxg5 {[%clk 0:01:28]}  e5 {[%clk 0:00:49]} 25. Nf5 {[%clk 0:01:06]}  Qd7 {[%clk 0:00:47]} 26. Nh4 {[%clk 0:00:57]}  exf4 {[%clk 0:00:39]} 27. exf4 {[%clk 0:00:57]}  Qb5 {[%clk 0:00:38]} 28. gxf6 {[%clk 0:00:54]}  Rxf6 {[%clk 0:00:38]} 29. Rg6 {[%clk 0:00:49]}  Na4 {[%clk 0:00:33]} 30. Rxf6 {[%clk 0:00:45]}  gxf6 {[%clk 0:00:33]} 31. Rc1 {[%clk 0:00:40]}  Rxc1+ {[%clk 0:00:31]} 32. Kxc1 {[%clk 0:00:36]}  Nc5 {[%clk 0:00:27]} 33. Ng6 {[%clk 0:00:20]}  Nxd3+ {[%clk 0:00:27]} 34. Kb1 {[%clk 0:00:20]}  Nb4 {[%clk 0:00:23]} 35. b3 {[%clk 0:00:13]}  a5 {[%clk 0:00:19]} 36. Ne7 {[%clk 0:00:11]}  Qd7 {[%clk 0:00:18]} 37. Ng6 {[%clk 0:00:09]}  Qf5+ {[%clk 0:00:18]} 38. Kb2 {[%clk 0:00:09]}  Qxg6 {[%clk 0:00:18]} 39. a3 {[%clk 0:00:09]}  Qd3 {[%clk 0:00:16]} 40. Qh2 {[%clk 0:00:03]}  Qd4+ {[%clk 0:00:14]} 41. Kb1 {[%clk 0:00:02]}  Qe4+ {[%clk 0:00:13]} 42. Kb2 {[%clk 0:00:02]}  Nd3+ {[%clk 0:00:13]} 43. Kc3 {[%clk 0:00:02]}  d4+ {[%clk 0:00:11]} 44. Kc4 {[%clk 0:00:02]}  Nxf4 {[%clk 0:00:10]} 45. a4 {[%clk 0:00:01]}  Ka7 {[%clk 0:00:08]} 0-1


[Site "https://www.chess.com"]

[Event "Titled Tuesday Blitz January 17 Late 2023"]
[White "Oparin, Grigoriy"]
[Black "Vovk, Orest"]
[WhiteFideId "24125890"]
[BlackFideId "14113490"]
[WhiteElo "2667"]
[BlackElo "2315"]
[Result "1-0"]
[Round "01"]
[TimeControl "180+2"]
[Date "2023.01.17"]
[WhiteClock "0:02:13"]
[BlackClock "0:01:07"]

1. e4 {[%clk 0:03:00]}  g5 {[%clk 0:02:58]} 2. d4 {[%clk 0:03:00]}  h6 {[%clk 0:02:56]} 3. h4 {[%clk 0:02:59]}  g4 {[%clk 0:02:56]} 4. h5 {[%clk 0:02:55]}  d5 {[%clk 0:02:49]} 5. exd5 {[%clk 0:02:54]}  Qxd5 {[%clk 0:02:48]} 6. Nc3 {[%clk 0:02:55]}  Qa5 {[%clk 0:02:48]} 7. Bc4 {[%clk 0:02:54]}  c6 {[%clk 0:02:45]} 8. Ne2 {[%clk 0:02:53]}  Nf6 {[%clk 0:02:42]} 9. Ng3 {[%clk 0:02:48]}  Nbd7 {[%clk 0:02:37]} 10. Qe2 {[%clk 0:02:47]}  Nb6 {[%clk 0:02:34]} 11. Bb3 {[%clk 0:02:47]}  Nbd5 {[%clk 0:02:29]} 12. Bd2 {[%clk 0:02:47]}  Nxc3 {[%clk 0:02:28]} 13. Bxc3 {[%clk 0:02:48]}  Qg5 {[%clk 0:02:21]} 14. Bd2 {[%clk 0:02:43]}  Qb5 {[%clk 0:02:10]} 15. c4 {[%clk 0:02:33]}  Qb6 {[%clk 0:02:05]} 16. O-O-O {[%clk 0:02:33]}  Qxd4 {[%clk 0:01:39]} 17. Bg5 {[%clk 0:02:22]}  Qxd1+ {[%clk 0:01:23]} 18. Rxd1 {[%clk 0:02:22]}  hxg5 {[%clk 0:01:23]} 19. c5 {[%clk 0:02:22]}  Nxh5 {[%clk 0:01:08]} 20. Nxh5 {[%clk 0:02:13]}  Rxh5 {[%clk 0:01:07]} 21. Qd3 {[%clk 0:02:13]} 1-0


[Site "https://www.chess.com"]